[Event "*** Titled Tuesday Blitz"]
[Site "Chess.com"]
[Date "2021.04.06"]
[Round "8"]
[White "Cuajada_Zero"]
[Black "J36225"]
[Result "0-1"]
[WhiteElo "2313"]
[BlackElo "2442"]
[TimeControl "180+1"]
[EndTime "11:29:08 PDT"]
[Termination "J36225 won on time"]

1. d4 {[%clk 0:03:00.9]} 1... Nf6 {[%clk 0:02:59.8]} 2. Bg5 {[%clk 0:02:54.8]}
2... e6 {[%clk 0:02:59]} 3. e4 {[%clk 0:02:49.7]} 3... h6 {[%clk 0:02:58.2]} 4.
Bxf6 {[%clk 0:02:48.6]} 4... Qxf6 {[%clk 0:02:57.7]} 5. c3 {[%clk 0:02:48.5]}
5... g6 {[%clk 0:02:57.2]} 6. Bd3 {[%clk 0:02:47.3]} 6... Bg7 {[%clk 0:02:57.2]}
7. Ne2 {[%clk 0:02:47]} 7... d6 {[%clk 0:02:57.1]} 8. Nd2 {[%clk 0:02:40.9]}
8... O-O {[%clk 0:02:55.8]} 9. O-O {[%clk 0:02:40.1]} 9... b6 {[%clk 0:02:53.2]}
10. f4 {[%clk 0:02:37.9]} 10... Bb7 {[%clk 0:02:47.3]} 11. Ng3 {[%clk
0:02:34.8]} 11... Qh4 {[%clk 0:02:33.6]} 12. f5 {[%clk 0:02:27.3]} 12... exf5
{[%clk 0:02:32.4]} 13. exf5 {[%clk 0:02:26.6]} 13... Bxd4+ {[%clk 0:02:19.5]}
14. Kh1 {[%clk 0:02:08.9]} 14... Be5 {[%clk 0:02:10]} 15. Qe1 {[%clk 0:02:07]}
15... Nd7 {[%clk 0:02:00.1]} 16. fxg6 {[%clk 0:02:02.5]} 16... fxg6 {[%clk
0:01:59.6]} 17. Rxf8+ {[%clk 0:01:59.4]} 17... Rxf8 {[%clk 0:01:58.9]} 18. Bxg6
{[%clk 0:01:54.9]} 18... Bxg3 {[%clk 0:01:51.2]} 19. Qxg3 {[%clk 0:01:52.9]}
19... Qxg3 {[%clk 0:01:51.1]} 20. hxg3 {[%clk 0:01:52.3]} 20... Ne5 {[%clk
0:01:49.1]} 21. Be4 {[%clk 0:01:51.1]} 21... Bxe4 {[%clk 0:01:45.7]} 22. Nxe4
{[%clk 0:01:52]} 22... Nd3 {[%clk 0:01:37.4]} 23. b3 {[%clk 0:01:37.2]} 23... d5
{[%clk 0:01:33.7]} 24. Nd2 {[%clk 0:01:31.2]} 24... Rf2 {[%clk 0:01:24.9]} 25.
Nf1 {[%clk 0:01:16.6]} 25... Ne5 {[%clk 0:01:07.6]} 26. Kg1 {[%clk 0:01:02.7]}
26... Re2 {[%clk 0:01:03.1]} 27. Rd1 {[%clk 0:00:52.1]} 27... c6 {[%clk
0:00:58.8]} 28. Rd2 {[%clk 0:00:46.1]} 28... Rxd2 {[%clk 0:00:58.1]} 29. Nxd2
{[%clk 0:00:47]} 29... Kf7 {[%clk 0:00:58.8]} 30. Kf2 {[%clk 0:00:46.8]} 30...
Kf6 {[%clk 0:00:57.8]} 31. Ke3 {[%clk 0:00:45.8]} 31... Kf5 {[%clk 0:00:57.7]}
32. Nf3 {[%clk 0:00:41.9]} 32... c5 {[%clk 0:00:49.9]} 33. Nh2 {[%clk
0:00:17.1]} 33... Ng4+ {[%clk 0:00:43.7]} 34. Nxg4 {[%clk 0:00:15.8]} 34... Kxg4
{[%clk 0:00:44.6]} 35. Kf2 {[%clk 0:00:15.7]} 35... h5 {[%clk 0:00:43.4]} 36. a3
{[%clk 0:00:15.4]} 36... a5 {[%clk 0:00:37.9]} 37. a4 {[%clk 0:00:14.6]} 37...
d4 {[%clk 0:00:34.9]} 38. c4 {[%clk 0:00:10.3]} 38... d3 {[%clk 0:00:35]} 39.
Ke3 {[%clk 0:00:10.2]} 39... Kxg3 {[%clk 0:00:35.3]} 40. Kxd3 {[%clk 0:00:10]}
40... Kxg2 {[%clk 0:00:35.6]} 0-1

[Event "*** Titled Tuesday Blitz"]
[Site "Chess.com"]
[Date "2021.04.06"]
[Round "8"]
[White "Two_Towers_Krakow"]
[Black "NikolaGry"]
[Result "1/2-1/2"]
[WhiteElo "2518"]
[BlackElo "2692"]
[TimeControl "180+1"]
[EndTime "11:29:09 PDT"]
[Termination "Game drawn - insufficient material"]

1. e4 {[%clk 0:03:00.8]} 1... e5 {[%clk 0:02:59.7]} 2. Nf3 {[%clk 0:03:00]} 2...
d6 {[%clk 0:03:00.2]} 3. d4 {[%clk 0:02:58.6]} 3... exd4 {[%clk 0:03:00.6]} 4.
Nxd4 {[%clk 0:02:59.5]} 4... Nf6 {[%clk 0:03:00.7]} 5. Nc3 {[%clk 0:02:59.8]}
5... g6 {[%clk 0:03:01.1]} 6. f3 {[%clk 0:02:59.8]} 6... Bg7 {[%clk 0:03:00.7]}
7. Be3 {[%clk 0:02:59.3]} 7... O-O {[%clk 0:03:00.3]} 8. Qd2 {[%clk 0:02:59.7]}
8... d5 {[%clk 0:02:51.7]} 9. e5 {[%clk 0:02:59.6]} 9... Nfd7 {[%clk 0:02:50.2]}
10. f4 {[%clk 0:02:59.6]} 10... c5 {[%clk 0:02:48.9]} 11. Nxd5 {[%clk
0:02:49.1]} 11... cxd4 {[%clk 0:02:48]} 12. Bxd4 {[%clk 0:02:50]} 12... Nc6
{[%clk 0:02:43.4]} 13. Be3 {[%clk 0:02:49.6]} 13... Nb6 {[%clk 0:01:59.1]} 14.
Nxb6 {[%clk 0:02:44.1]} 14... Qxd2+ {[%clk 0:01:58]} 15. Kxd2 {[%clk 0:02:44.3]}
15... axb6 {[%clk 0:01:58]} 16. Bxb6 {[%clk 0:02:44.8]} 16... Be6 {[%clk
0:01:55.8]} 17. a3 {[%clk 0:02:41.6]} 17... f6 {[%clk 0:01:54.4]} 18. exf6
{[%clk 0:02:39.6]} 18... Bxf6 {[%clk 0:01:53.8]} 19. c3 {[%clk 0:02:35.1]} 19...
Na5 {[%clk 0:01:44.5]} 20. Re1 {[%clk 0:02:32.2]} 20... Bf5 {[%clk 0:01:41.2]}
21. Bxa5 {[%clk 0:02:26.4]} 21... Rxa5 {[%clk 0:01:38]} 22. Bc4+ {[%clk
0:02:19]} 22... Kg7 {[%clk 0:01:36.4]} 23. Be6 {[%clk 0:02:18.3]} 23... Rd8+
{[%clk 0:01:24.9]} 24. Kc1 {[%clk 0:02:18.1]} 24... Bd3 {[%clk 0:01:13.5]} 25.
Re3 {[%clk 0:02:14.9]} 25... Bf5 {[%clk 0:00:59.1]} 26. g4 {[%clk 0:01:58.8]}
26... Bxe6 {[%clk 0:00:52.3]} 27. Rxe6 {[%clk 0:01:59.7]} 27... Rf8 {[%clk
0:00:46]} 28. Rd1 {[%clk 0:01:45.7]} 28... Bh4 {[%clk 0:00:34.8]} 29. Rd7+
{[%clk 0:01:42.8]} 29... Rf7 {[%clk 0:00:34.3]} 30. Rxf7+ {[%clk 0:01:42.5]}
30... Kxf7 {[%clk 0:00:34.4]} 31. Rb6 {[%clk 0:01:42.9]} 31... Ra7 {[%clk
0:00:34.6]} 32. Kc2 {[%clk 0:01:38.8]} 32... Bf2 {[%clk 0:00:33.6]} 33. Rb5
{[%clk 0:01:39]} 33... b6 {[%clk 0:00:33]} 34. Kd3 {[%clk 0:01:34.2]} 34... Rd7+
{[%clk 0:00:30.8]} 35. Ke2 {[%clk 0:01:34.4]} 35... Bg1 {[%clk 0:00:29.2]} 36.
h3 {[%clk 0:01:34]} 36... Re7+ {[%clk 0:00:26.9]} 37. Kf1 {[%clk 0:01:34.3]}
37... Be3 {[%clk 0:00:26.3]} 38. f5 {[%clk 0:01:33.2]} 38... Kf6 {[%clk
0:00:24.2]} 39. a4 {[%clk 0:01:28.2]} 39... Re4 {[%clk 0:00:18.8]} 40. Ke2
{[%clk 0:01:24.6]} 40... Bc5+ {[%clk 0:00:16.5]} 41. Kd3 {[%clk 0:01:24.5]}
41... Rxa4 {[%clk 0:00:16.5]} 42. b4 {[%clk 0:01:23.3]} 42... Bg1 {[%clk
0:00:16.3]} 43. fxg6 {[%clk 0:01:22.2]} 43... hxg6 {[%clk 0:00:16.3]} 44. Rd5
{[%clk 0:01:15]} 44... Bh2 {[%clk 0:00:15.8]} 45. Kc4 {[%clk 0:01:12.1]} 45...
Ra3 {[%clk 0:00:15.1]} 46. h4 {[%clk 0:01:06]} 46... Be5 {[%clk 0:00:14.4]} 47.
Rd3 {[%clk 0:01:06.2]} 47... Ke6 {[%clk 0:00:13.2]} 48. h5 {[%clk 0:01:04.6]}
48... gxh5 {[%clk 0:00:13.2]} 49. gxh5 {[%clk 0:01:05.1]} 49... Ra8 {[%clk
0:00:12.9]} 50. Rh3 {[%clk 0:01:05]} 50... Rc8+ {[%clk 0:00:12.2]} 51. Kb5
{[%clk 0:01:05.4]} 51... Rxc3 {[%clk 0:00:11.8]} 52. Rxc3 {[%clk 0:01:04.4]}
52... Bxc3 {[%clk 0:00:12]} 53. h6 {[%clk 0:00:59.7]} 53... Bxb4 {[%clk
0:00:10.4]} 54. Kxb4 {[%clk 0:00:59.3]} 54... Kf6 {[%clk 0:00:10.6]} 55. Kb5
{[%clk 0:00:59.6]} 55... Kg6 {[%clk 0:00:10.9]} 56. Kxb6 {[%clk 0:01:00.1]}
56... Kxh6 {[%clk 0:00:11.2]} 1/2-1/2

[Event "*** Titled Tuesday Blitz"]
[Site "Chess.com"]
[Date "2021.04.06"]
[Round "8"]
[White "GMJustin"]
[Black "ajedrez1101"]
[Result "1-0"]
[WhiteElo "2277"]
[BlackElo "2113"]
[TimeControl "180+1"]
[EndTime "11:29:11 PDT"]
[Termination "GMJustin won on time"]

1. e4 {[%clk 0:02:33]} 1... b6 {[%clk 0:02:59.7]} 2. d4 {[%clk 0:02:32]} 2...
Bb7 {[%clk 0:02:59.5]} 3. Nd2 {[%clk 0:02:32.2]} 3... e6 {[%clk 0:02:56.9]} 4.
Ngf3 {[%clk 0:02:30.5]} 4... d5 {[%clk 0:02:55.4]} 5. Bd3 {[%clk 0:02:26.9]}
5... c5 {[%clk 0:02:46]} 6. exd5 {[%clk 0:02:17.6]} 6... Bxd5 {[%clk 0:02:44.1]}
7. O-O {[%clk 0:02:00.7]} 7... Nf6 {[%clk 0:02:40.2]} 8. c3 {[%clk 0:01:28.6]}
8... Be7 {[%clk 0:02:07.1]} 9. Bb5+ {[%clk 0:01:25.2]} 9... Nbd7 {[%clk
0:02:00.9]} 10. c4 {[%clk 0:01:13.3]} 10... Bb7 {[%clk 0:01:55.1]} 11. dxc5
{[%clk 0:01:11.3]} 11... Bxc5 {[%clk 0:01:52]} 12. Nb3 {[%clk 0:01:10.2]} 12...
O-O {[%clk 0:01:41.6]} 13. Nxc5 {[%clk 0:00:56.6]} 13... Nxc5 {[%clk 0:01:40.2]}
14. b4 {[%clk 0:00:49]} 14... Qxd1 {[%clk 0:01:01.3]} 15. Rxd1 {[%clk
0:00:49.9]} 15... Nce4 {[%clk 0:01:00.8]} 16. Bb2 {[%clk 0:00:41.6]} 16... Rfd8
{[%clk 0:00:52.7]} 17. Ne5 {[%clk 0:00:34.6]} 17... a6 {[%clk 0:00:38.5]} 18.
Ba4 {[%clk 0:00:30.4]} 18... Rac8 {[%clk 0:00:33.3]} 19. f3 {[%clk 0:00:26]}
19... Nd6 {[%clk 0:00:32.4]} 20. Rac1 {[%clk 0:00:20.2]} 20... b5 {[%clk
0:00:16.9]} 21. cxb5 {[%clk 0:00:19.5]} 21... Nxb5 {[%clk 0:00:16.2]} 22. Bb3
{[%clk 0:00:12.6]} 22... Bd5 {[%clk 0:00:15]} 23. Nc4 {[%clk 0:00:07.1]} 23...
h6 {[%clk 0:00:09.4]} 24. Rd3 {[%clk 0:00:04.7]} 24... Rc7 {[%clk 0:00:08.3]}
25. Rcd1 {[%clk 0:00:02.9]} 25... Rdc8 {[%clk 0:00:07.7]} 26. Ne3 {[%clk
0:00:01.6]} 26... Bxb3 {[%clk 0:00:07.5]} 27. Rxb3 {[%clk 0:00:01.9]} 27... e5
{[%clk 0:00:03.9]} 28. a4 {[%clk 0:00:02.1]} 28... Na7 {[%clk 0:00:02.9]} 29.
Ba3 {[%clk 0:00:01.8]} 29... Nc6 {[%clk 0:00:02.8]} 30. Rdb1 {[%clk 0:00:01.4]}
30... Nd4 {[%clk 0:00:02]} 31. R3b2 {[%clk 0:00:01.8]} 1-0

[Event "*** Titled Tuesday Blitz"]
[Site "Chess.com"]
[Date "2021.04.06"]
[Round "8"]
[White "IljaJoke"]
[Black "FGHSMN"]
[Result "0-1"]
[WhiteElo "2470"]
[BlackElo "2585"]
[TimeControl "180+1"]
[EndTime "11:29:12 PDT"]
[Termination "FGHSMN won by checkmate"]

1. e4 {[%clk 0:03:00.9]} 1... c5 {[%clk 0:02:59.2]} 2. Nf3 {[%clk 0:03:01.1]}
2... e6 {[%clk 0:02:58.7]} 3. d4 {[%clk 0:03:01.5]} 3... cxd4 {[%clk 0:02:59.6]}
4. Nxd4 {[%clk 0:03:02.4]} 4... a6 {[%clk 0:02:59.3]} 5. c4 {[%clk 0:03:02]}
5... Nf6 {[%clk 0:02:57.8]} 6. Nc3 {[%clk 0:03:01.4]} 6... Qc7 {[%clk
0:02:54.5]} 7. a3 {[%clk 0:02:56.9]} 7... b6 {[%clk 0:02:49.8]} 8. Be3 {[%clk
0:02:54.1]} 8... Bb7 {[%clk 0:02:49]} 9. f3 {[%clk 0:02:53.1]} 9... d6 {[%clk
0:02:47.4]} 10. Be2 {[%clk 0:02:52.7]} 10... Be7 {[%clk 0:02:42.1]} 11. Rc1
{[%clk 0:02:52.6]} 11... Nbd7 {[%clk 0:02:40.2]} 12. O-O {[%clk 0:02:52.9]}
12... O-O {[%clk 0:02:37.8]} 13. b4 {[%clk 0:02:52.5]} 13... Rac8 {[%clk
0:02:31.8]} 14. Qd2 {[%clk 0:02:52.7]} 14... Qb8 {[%clk 0:02:28.9]} 15. Rfd1
{[%clk 0:02:44.9]} 15... Rfe8 {[%clk 0:02:24.8]} 16. Nb3 {[%clk 0:02:41.2]}
16... Bc6 {[%clk 0:02:04.5]} 17. a4 {[%clk 0:02:03.1]} 17... Ne5 {[%clk
0:01:48.8]} 18. b5 {[%clk 0:01:46.8]} 18... Bb7 {[%clk 0:01:30]} 19. a5 {[%clk
0:01:44.3]} 19... Nxc4 {[%clk 0:01:22.1]} 20. Bxc4 {[%clk 0:01:43.7]} 20... Rxc4
{[%clk 0:01:23]} 21. axb6 {[%clk 0:01:28.9]} 21... d5 {[%clk 0:00:58.5]} 22.
bxa6 {[%clk 0:01:25.3]} 22... Bxa6 {[%clk 0:00:59.4]} 23. exd5 {[%clk
0:01:23.8]} 23... exd5 {[%clk 0:00:52.8]} 24. Nxd5 {[%clk 0:01:23.9]} 24... Nxd5
{[%clk 0:00:49.1]} 25. Qxd5 {[%clk 0:01:24.2]} 25... Rxc1 {[%clk 0:00:39.9]} 26.
Rxc1 {[%clk 0:01:24.6]} 26... Bd6 {[%clk 0:00:37]} 27. Bd4 {[%clk 0:00:54.1]}
27... Bxh2+ {[%clk 0:00:36.3]} 28. Kh1 {[%clk 0:00:53]} 28... Bf4 {[%clk
0:00:35.5]} 29. Ra1 {[%clk 0:00:26.7]} 29... Bb7 {[%clk 0:00:32.5]} 30. Qf5
{[%clk 0:00:16.6]} 30... Qd6 {[%clk 0:00:28.5]} 31. Qg4 {[%clk 0:00:07.8]} 31...
Qh6+ {[%clk 0:00:19.7]} 32. Kg1 {[%clk 0:00:08]} 32... Qh2+ {[%clk 0:00:18.2]}
33. Kf2 {[%clk 0:00:08.4]} 33... Bg3+ {[%clk 0:00:15.7]} 34. Kf1 {[%clk
0:00:02.8]} 34... Ba6+ {[%clk 0:00:15.3]} 35. Rxa6 {[%clk 0:00:01.8]} 35... Re1#
{[%clk 0:00:14.3]} 0-1

[Event "*** Titled Tuesday Blitz"]
[Site "Chess.com"]
[Date "2021.04.06"]
[Round "8"]
[White "elegant285"]
[Black "Olkaa"]
[Result "0-1"]
[WhiteElo "2366"]
[BlackElo "2657"]
[TimeControl "180+1"]
[EndTime "11:29:13 PDT"]
[Termination "Olkaa won by resignation"]

1. d4 {[%clk 0:03:00.9]} 1... Nf6 {[%clk 0:02:59.6]} 2. c4 {[%clk 0:03:01.1]}
2... c5 {[%clk 0:02:59.8]} 3. d5 {[%clk 0:03:01.1]} 3... b5 {[%clk 0:03:00.1]}
4. Qc2 {[%clk 0:03:01.2]} 4... b4 {[%clk 0:02:58.7]} 5. e4 {[%clk 0:03:02.1]}
5... d6 {[%clk 0:02:58.2]} 6. a3 {[%clk 0:03:02.5]} 6... Nbd7 {[%clk 0:02:52.4]}
7. Bd3 {[%clk 0:02:51.2]} 7... g6 {[%clk 0:02:52.2]} 8. Bd2 {[%clk 0:02:48.6]}
8... Qb6 {[%clk 0:02:41.1]} 9. axb4 {[%clk 0:02:04.5]} 9... cxb4 {[%clk
0:02:42]} 10. Qa4 {[%clk 0:02:04.6]} 10... Ng4 {[%clk 0:02:19.1]} 11. Nh3 {[%clk
0:01:54.6]} 11... Bg7 {[%clk 0:02:17.9]} 12. Be2 {[%clk 0:01:22.4]} 12... Nf6
{[%clk 0:02:06.5]} 13. Be3 {[%clk 0:00:57.8]} 13... Qb7 {[%clk 0:01:54]} 14. Nd2
{[%clk 0:00:55.4]} 14... O-O {[%clk 0:01:50.6]} 15. O-O {[%clk 0:00:52.8]} 15...
Nc5 {[%clk 0:01:26.4]} 16. Bxc5 {[%clk 0:00:52.9]} 16... dxc5 {[%clk 0:01:27.3]}
17. Nf4 {[%clk 0:00:53.5]} 17... a5 {[%clk 0:01:18.8]} 18. e5 {[%clk 0:00:38]}
18... Nd7 {[%clk 0:01:09]} 19. e6 {[%clk 0:00:37.2]} 19... Nb6 {[%clk
0:01:03.1]} 20. Qc2 {[%clk 0:00:32.9]} 20... Qc7 {[%clk 0:00:46.3]} 21. g3
{[%clk 0:00:23.4]} 21... fxe6 {[%clk 0:00:36.4]} 22. Nxe6 {[%clk 0:00:23.6]}
22... Bxe6 {[%clk 0:00:35.7]} 23. dxe6 {[%clk 0:00:24.5]} 23... a4 {[%clk
0:00:33]} 24. Bf3 {[%clk 0:00:23.2]} 24... Rad8 {[%clk 0:00:32.1]} 25. Ne4
{[%clk 0:00:22.1]} 25... Rxf3 {[%clk 0:00:31]} 26. Ng5 {[%clk 0:00:20.5]} 26...
Rf6 {[%clk 0:00:25.4]} 27. Rad1 {[%clk 0:00:20.2]} 27... h6 {[%clk 0:00:24.2]}
28. Rxd8+ {[%clk 0:00:17.8]} 28... Qxd8 {[%clk 0:00:23.9]} 29. Nf7 {[%clk
0:00:18.3]} 29... Qc7 {[%clk 0:00:20.5]} 30. Qe4 {[%clk 0:00:16.2]} 30... Qc8
{[%clk 0:00:16.5]} 31. Rd1 {[%clk 0:00:15.5]} 31... Qxe6 {[%clk 0:00:16.1]} 32.
Rd8+ {[%clk 0:00:04.9]} 32... Kh7 {[%clk 0:00:16.3]} 33. Qb7 {[%clk 0:00:05.4]}
33... Rxf7 {[%clk 0:00:14]} 34. Qb8 {[%clk 0:00:02.6]} 34... Qe1+ {[%clk
0:00:13]} 35. Kg2 {[%clk 0:00:03]} 35... Qxf2+ {[%clk 0:00:12.9]} 0-1

[Event "*** Titled Tuesday Blitz"]
[Site "Chess.com"]
[Date "2021.04.06"]
[Round "8"]
[White "chescomhuynya"]
[Black "Aslanov_Umid"]
[Result "1-0"]
[WhiteElo "2563"]
[BlackElo "2405"]
[TimeControl "180+1"]
[EndTime "11:29:15 PDT"]
[Termination "chescomhuynya won on time"]

1. e4 {[%clk 0:03:00.9]} 1... c5 {[%clk 0:02:59.4]} 2. Nf3 {[%clk 0:03:00.9]}
2... d6 {[%clk 0:02:59.8]} 3. d4 {[%clk 0:02:56.9]} 3... cxd4 {[%clk 0:03:00.7]}
4. Nxd4 {[%clk 0:02:57.8]} 4... Nf6 {[%clk 0:03:01.5]} 5. Nc3 {[%clk 0:02:58.4]}
5... a6 {[%clk 0:03:01.8]} 6. Bc4 {[%clk 0:02:59.1]} 6... e6 {[%clk 0:03:01.4]}
7. Bb3 {[%clk 0:02:59.7]} 7... Nc6 {[%clk 0:03:01.4]} 8. O-O {[%clk 0:02:52]}
8... Be7 {[%clk 0:02:59.5]} 9. f4 {[%clk 0:02:38.9]} 9... O-O {[%clk 0:02:56.6]}
10. f5 {[%clk 0:02:38.9]} 10... d5 {[%clk 0:02:44.3]} 11. fxe6 {[%clk
0:02:25.5]} 11... fxe6 {[%clk 0:02:40.2]} 12. Nxe6 {[%clk 0:02:23.2]} 12... Bxe6
{[%clk 0:02:35.4]} 13. exd5 {[%clk 0:02:23.5]} 13... Qb6+ {[%clk 0:02:26.9]} 14.
Kh1 {[%clk 0:02:23.1]} 14... Rad8 {[%clk 0:02:25.3]} 15. Qe2 {[%clk 0:01:49.8]}
15... Nd4 {[%clk 0:02:23.5]} 16. Be3 {[%clk 0:00:50.5]} 16... Ng4 {[%clk
0:01:22.6]} 17. Bxd4 {[%clk 0:00:46.6]} 17... Qxd4 {[%clk 0:01:23.5]} 18. Qxe6+
{[%clk 0:00:46.7]} 18... Kh8 {[%clk 0:01:21.9]} 19. Qxe7 {[%clk 0:00:39.9]}
19... Nf2+ {[%clk 0:01:17.2]} 20. Rxf2 {[%clk 0:00:39.9]} 20... Qxf2 {[%clk
0:01:18.1]} 21. h3 {[%clk 0:00:33.8]} 21... Rde8 {[%clk 0:01:17.4]} 22. Qg5
{[%clk 0:00:22.2]} 22... h6 {[%clk 0:01:05.2]} 23. Qc1 {[%clk 0:00:18]} 23...
Qg3 {[%clk 0:00:46.2]} 24. Qg1 {[%clk 0:00:08]} 24... Rf2 {[%clk 0:00:42.5]} 25.
Rd1 {[%clk 0:00:07.9]} 25... Re3 {[%clk 0:00:20.4]} 26. Qh2 {[%clk 0:00:08.2]}
26... Qg6 {[%clk 0:00:07.8]} 27. d6 {[%clk 0:00:08.2]} 27... Qe8 {[%clk
0:00:05.5]} 28. d7 {[%clk 0:00:07]} 28... Qd8 {[%clk 0:00:05.2]} 29. Qg1 {[%clk
0:00:04.2]} 1-0

[Event "*** Titled Tuesday Blitz"]
[Site "Chess.com"]
[Date "2021.04.06"]
[Round "8"]
[White "DFeco"]
[Black "ErikRonka"]
[Result "0-1"]
[WhiteElo "2324"]
[BlackElo "2452"]
[TimeControl "180+1"]
[EndTime "11:29:15 PDT"]
[Termination "ErikRonka won by resignation"]

1. c4 {[%clk 0:03:00.9]} 1... e6 {[%clk 0:02:59.7]} 2. g3 {[%clk 0:03:01]} 2...
d5 {[%clk 0:02:59.9]} 3. Bg2 {[%clk 0:03:01.4]} 3... Nf6 {[%clk 0:03:00.3]} 4.
Nf3 {[%clk 0:03:01.9]} 4... Be7 {[%clk 0:02:59.8]} 5. O-O {[%clk 0:03:02.4]}
5... O-O {[%clk 0:03:00.4]} 6. b3 {[%clk 0:02:57.2]} 6... a5 {[%clk 0:03:00.3]}
7. a4 {[%clk 0:02:54.7]} 7... Na6 {[%clk 0:02:56.7]} 8. Bb2 {[%clk 0:02:54.2]}
8... Nb4 {[%clk 0:02:56.5]} 9. d3 {[%clk 0:02:51.7]} 9... c6 {[%clk 0:02:55.4]}
10. Nbd2 {[%clk 0:02:51.1]} 10... b6 {[%clk 0:02:54.3]} 11. e4 {[%clk
0:02:50.5]} 11... Nxd3 {[%clk 0:02:50.3]} 12. Bc3 {[%clk 0:02:45.8]} 12... Nxe4
{[%clk 0:02:32.6]} 13. Nxe4 {[%clk 0:02:37.4]} 13... dxe4 {[%clk 0:02:33.5]} 14.
Nd4 {[%clk 0:02:37.6]} 14... f5 {[%clk 0:02:15.2]} 15. Nxc6 {[%clk 0:02:23.5]}
15... Qc7 {[%clk 0:02:13.6]} 16. Nxe7+ {[%clk 0:02:22.2]} 16... Qxe7 {[%clk
0:02:14.5]} 17. Qe2 {[%clk 0:02:06]} 17... Bb7 {[%clk 0:02:05.2]} 18. f3 {[%clk
0:02:03.1]} 18... Nc5 {[%clk 0:01:54.7]} 19. Bd4 {[%clk 0:02:00.2]} 19... Nxb3
{[%clk 0:01:45.8]} 20. Rad1 {[%clk 0:01:55.4]} 20... Nxd4 {[%clk 0:01:40.6]} 21.
Rxd4 {[%clk 0:01:46.2]} 21... Qc5 {[%clk 0:01:38.7]} 22. Qf2 {[%clk 0:01:38.8]}
22... exf3 {[%clk 0:01:34.5]} 23. Bh1 {[%clk 0:01:38]} 23... e5 {[%clk
0:00:54.1]} 24. Rd7 {[%clk 0:01:33]} 24... Bc8 {[%clk 0:00:48]} 25. Qxc5 {[%clk
0:01:30.2]} 25... bxc5 {[%clk 0:00:48.9]} 26. Rc7 {[%clk 0:01:29.8]} 26... e4
{[%clk 0:00:48.8]} 27. Rxc5 {[%clk 0:01:29.5]} 27... Bd7 {[%clk 0:00:48.4]} 28.
Kf2 {[%clk 0:01:28.4]} 28... Rfc8 {[%clk 0:00:45]} 29. Rd5 {[%clk 0:01:23.5]}
29... Be6 {[%clk 0:00:43.7]} 30. Re5 {[%clk 0:01:23.1]} 30... Bxc4 {[%clk
0:00:42.3]} 31. Rd1 {[%clk 0:01:21.3]} 31... Rd8 {[%clk 0:00:31.9]} 32. Rc1
{[%clk 0:01:12.8]} 32... Rd2+ {[%clk 0:00:27.1]} 33. Ke3 {[%clk 0:01:12.1]}
33... Re2+ {[%clk 0:00:21.1]} 34. Kf4 {[%clk 0:01:10.9]} 34... f2 {[%clk
0:00:19.9]} 35. Bg2 {[%clk 0:01:06.1]} 35... Bf7 {[%clk 0:00:14.8]} 36. Kxf5
{[%clk 0:00:57.5]} 36... Re1 {[%clk 0:00:14]} 37. Rec5 {[%clk 0:00:58]} 37...
Bg6+ {[%clk 0:00:10.5]} 38. Kf4 {[%clk 0:00:56.7]} 38... Rf8+ {[%clk 0:00:09.7]}
39. Kg5 {[%clk 0:00:50.2]} 39... e3 {[%clk 0:00:10.2]} 40. Bd5+ {[%clk
0:00:48.6]} 40... Kh8 {[%clk 0:00:10.1]} 41. Rc8 {[%clk 0:00:48.7]} 41... Be8
{[%clk 0:00:07.3]} 42. Bg2 {[%clk 0:00:42.8]} 42... h6+ {[%clk 0:00:07]} 43. Kh4
{[%clk 0:00:41.6]} 43... e2 {[%clk 0:00:07.3]} 0-1

[Event "*** Titled Tuesday Blitz"]
[Site "Chess.com"]
[Date "2021.04.06"]
[Round "8"]
[White "Mihnea2017"]
[Black "kuba2006"]
[Result "0-1"]
[WhiteElo "2440"]
[BlackElo "2347"]
[TimeControl "180+1"]
[EndTime "11:29:16 PDT"]
[Termination "kuba2006 won by resignation"]

1. e4 {[%clk 0:03:00.9]} 1... Nf6 {[%clk 0:03:00.9]} 2. e5 {[%clk 0:03:01]} 2...
Nd5 {[%clk 0:03:00.4]} 3. d4 {[%clk 0:03:01.7]} 3... d6 {[%clk 0:03:00.2]} 4.
Nf3 {[%clk 0:03:01.1]} 4... Bg4 {[%clk 0:02:59]} 5. Be2 {[%clk 0:03:01.1]} 5...
c6 {[%clk 0:02:57.8]} 6. O-O {[%clk 0:03:00.6]} 6... Bxf3 {[%clk 0:02:57.9]} 7.
Bxf3 {[%clk 0:03:00.6]} 7... dxe5 {[%clk 0:02:58.4]} 8. dxe5 {[%clk 0:03:00.5]}
8... e6 {[%clk 0:02:59]} 9. Nd2 {[%clk 0:02:52.4]} 9... Nd7 {[%clk 0:02:55.9]}
10. Nc4 {[%clk 0:02:52]} 10... b5 {[%clk 0:02:49]} 11. Nd6+ {[%clk 0:02:49.7]}
11... Bxd6 {[%clk 0:02:48.4]} 12. exd6 {[%clk 0:02:50.6]} 12... Qb8 {[%clk
0:02:48]} 13. Qd4 {[%clk 0:02:38.1]} 13... O-O {[%clk 0:02:45.8]} 14. b3 {[%clk
0:02:23.7]} 14... b4 {[%clk 0:02:34.5]} 15. Bb2 {[%clk 0:02:20.1]} 15... N7f6
{[%clk 0:02:29.6]} 16. Bxd5 {[%clk 0:01:48.4]} 16... cxd5 {[%clk 0:02:27.9]} 17.
Qf4 {[%clk 0:01:48.1]} 17... Rd8 {[%clk 0:02:13.6]} 18. Bxf6 {[%clk 0:01:47.2]}
18... gxf6 {[%clk 0:02:12.3]} 19. Qxf6 {[%clk 0:01:47.3]} 19... Qxd6 {[%clk
0:02:12]} 20. Rad1 {[%clk 0:01:45.3]} 20... e5 {[%clk 0:02:08.2]} 21. Qg5+
{[%clk 0:01:44.2]} 21... Kh8 {[%clk 0:02:07.4]} 22. Rd3 {[%clk 0:01:44.2]} 22...
Rg8 {[%clk 0:02:06.1]} 23. Qf5 {[%clk 0:01:40.7]} 23... f6 {[%clk 0:01:57.2]}
24. Rfd1 {[%clk 0:01:35]} 24... d4 {[%clk 0:01:40.5]} 25. Rh3 {[%clk 0:01:34]}
25... Rg7 {[%clk 0:01:36.9]} 26. Rdd3 {[%clk 0:01:33.4]} 26... Rag8 {[%clk
0:01:32.4]} 27. Rdg3 {[%clk 0:01:33.6]} 27... Qe7 {[%clk 0:01:26.3]} 28. Rh6
{[%clk 0:01:28.2]} 28... Rxg3 {[%clk 0:01:18.5]} 29. hxg3 {[%clk 0:01:28.6]}
29... Rf8 {[%clk 0:01:06.7]} 30. g4 {[%clk 0:01:28.8]} 30... a5 {[%clk 0:01:05]}
31. Kh2 {[%clk 0:01:05.9]} 31... e4 {[%clk 0:00:50.8]} 32. Rh3 {[%clk
0:00:36.2]} 32... Qe5+ {[%clk 0:00:30.2]} 33. Qxe5 {[%clk 0:00:28.8]} 33... fxe5
{[%clk 0:00:31.1]} 34. Kg1 {[%clk 0:00:28.6]} 34... Rc8 {[%clk 0:00:30]} 35. Rh5
{[%clk 0:00:27.8]} 35... Rxc2 {[%clk 0:00:28.7]} 36. Rxe5 {[%clk 0:00:28]} 36...
d3 {[%clk 0:00:28.7]} 37. Kh2 {[%clk 0:00:20.6]} 37... d2 {[%clk 0:00:27.1]} 38.
Rd5 {[%clk 0:00:20.8]} 38... Rxa2 {[%clk 0:00:26]} 39. Kg3 {[%clk 0:00:21.2]}
39... a4 {[%clk 0:00:25.5]} 40. bxa4 {[%clk 0:00:20.9]} 40... b3 {[%clk
0:00:25.8]} 41. Kf4 {[%clk 0:00:20.6]} 41... b2 {[%clk 0:00:25.1]} 42. Rb5
{[%clk 0:00:04]} 0-1